{"text_format":"1","workbook":"xlsx","n_sheets":1,"sheets":["Pianificazione budget"],"not_rendered":{"charts":1,"images":0,"macros":0,"external_links":0,"defined_names":1,"comments":0,"pivot_tables":0},"unopened":[],"bounds":{"document_bytes":16777216,"sheet_cells":100000,"rows_first":2000,"rows_last":500,"rows_between":2000,"halvings":0,"cell_chars":16384,"cell_head_chars":4096},"cells_cut":0,"cells_raw":0,"read":"whole","date_system":"1900"}

{"sheet":"Pianificazione budget","index":0,"n_rows":21,"n_cols":6,"rows_kept":21,"cut":false,"hidden":false,"merged":[]}
[]
[]
[null,"Budget per categoria"]
[null,"Categorie","Budget pianificato","Budget in dettaglio","Disponibile/(Eccedente)"]
[null,"Trasporti",750,{"$f":"SUMIF(Tabella2[Categoria],Tabella1[[#This Row],[Categorie]],Tabella2[Importo])","v":720},{"$f":"IFERROR(Tabella1[[#This Row],[Budget pianificato]]-Tabella1[[#This Row],[Budget in dettaglio]],\"\")","v":30}]
[null,"Alloggio",250,{"$f":"SUMIF(Tabella2[Categoria],Tabella1[[#This Row],[Categorie]],Tabella2[Importo])","v":300},{"$f":"IFERROR(Tabella1[[#This Row],[Budget pianificato]]-Tabella1[[#This Row],[Budget in dettaglio]],\"\")","v":-50}]
[null,"Alimentari",100,{"$f":"SUMIF(Tabella2[Categoria],Tabella1[[#This Row],[Categorie]],Tabella2[Importo])","v":80},{"$f":"IFERROR(Tabella1[[#This Row],[Budget pianificato]]-Tabella1[[#This Row],[Budget in dettaglio]],\"\")","v":20}]
[null,"Attività",500,{"$f":"SUMIF(Tabella2[Categoria],Tabella1[[#This Row],[Categorie]],Tabella2[Importo])","v":500},{"$f":"IFERROR(Tabella1[[#This Row],[Budget pianificato]]-Tabella1[[#This Row],[Budget in dettaglio]],\"\")","v":0}]
[null,"Souvenir",50,{"$f":"SUMIF(Tabella2[Categoria],Tabella1[[#This Row],[Categorie]],Tabella2[Importo])","v":0},{"$f":"IFERROR(Tabella1[[#This Row],[Budget pianificato]]-Tabella1[[#This Row],[Budget in dettaglio]],\"\")","v":50}]
[null,"Altri",50,{"$f":"SUMIF(Tabella2[Categoria],Tabella1[[#This Row],[Categorie]],Tabella2[Importo])","v":0},{"$f":"IFERROR(Tabella1[[#This Row],[Budget pianificato]]-Tabella1[[#This Row],[Budget in dettaglio]],\"\")","v":50}]
[null,"Fondo di emergenza",200,{"$f":"SUMIF(Tabella2[Categoria],Tabella1[[#This Row],[Categorie]],Tabella2[Importo])","v":0},{"$f":"IFERROR(Tabella1[[#This Row],[Budget pianificato]]-Tabella1[[#This Row],[Budget in dettaglio]],\"\")","v":200}]
[null,"Budget totale",{"$f":"SUBTOTAL(109,Tabella1[Budget pianificato])","v":1900},{"$f":"SUBTOTAL(109,Tabella1[Budget in dettaglio])","v":1600},{"$f":"SUBTOTAL(109,Tabella1[Disponibile/(Eccedente)])","v":300}]
[]
[null,"Dettagli spese"]
[null,"Descrizione","Categoria","Quantità","Costo unitario","Importo"]
[null,"Biglietti aerei","Trasporti",2,300,{"$f":"IFERROR(Tabella2[[#This Row],[Quantità]]*Tabella2[[#This Row],[Costo unitario]],\"\")","v":600}]
[null,"Autobus e taxi, due giorni","Trasporti",4,30,{"$f":"IFERROR(Tabella2[[#This Row],[Quantità]]*Tabella2[[#This Row],[Costo unitario]],\"\")","v":120}]
[null,"Hotel, 2 notti","Alloggio",2,150,{"$f":"IFERROR(Tabella2[[#This Row],[Quantità]]*Tabella2[[#This Row],[Costo unitario]],\"\")","v":300}]
[null,"Generi alimentari, 2 giorni","Alimentari",2,40,{"$f":"IFERROR(Tabella2[[#This Row],[Quantità]]*Tabella2[[#This Row],[Costo unitario]],\"\")","v":80}]
[null,"1 giorno, biglietti di concerti","Attività",2,250,{"$f":"IFERROR(Tabella2[[#This Row],[Quantità]]*Tabella2[[#This Row],[Costo unitario]],\"\")","v":500}]
[null,"Digitare altri elementi di spesa",null,null,null,{"$f":"IFERROR(Tabella2[[#This Row],[Quantità]]*Tabella2[[#This Row],[Costo unitario]],\"\")","v":0}]